bitfinex/quotes_ETHUSD_20250920
["timestamp","ask_amount","ask_price","bid_price","bid_amount"]
[1758386196133,2.38242038,4508.9,4508.8,3.694]
[1758386197306,1.45665691,4508.9,4508.5,1.918]
[1758386197508,2.21794351,4508.7,4508.6,4.485]
[1758386197675,0.27772417,4508.7,4508.6,4.485]
[1758386198005,2.49565838,4508.7,4508.6,0.792]
[1758386198172,0.27772417,4508.7,4508.6,4.485]
[1758386198572,2.49565838,4508.7,4508.6,4.485]
[1758386198906,2.49565838,4508.7,4508.6,0.792]
[1758386199207,2.2179834,4508.6,4508.5,1.918]
[1758386199376,2.2179834,4508.6,4508.5,5.611]
[1758386199577,6.22081891,4508.7,4508.5,5.611]
[1758386199778,8.43876205,4508.7,4508.5,5.611]
[1758386200373,2.2179834,4508.6,4508.5,1.918]
[1758386200574,2.49570819,4508.6,4508.5,5.611]
[1758386201187,0.27772479,4508.6,4508.5,5.611]
[1758386201607,0.27772479,4508.6,4508.5,1.918]
[1758386201819,0.27772479,4508.6,4508.5,5.611]
[1758386204910,0.02772479,4508.6,4508.5,5.611]
[1758386205514,0.02772479,4508.6,4508.5,5.61]
[1758386205926,2.24570819,4508.6,4508.5,5.61]
[1758386206727,0.02772479,4508.6,4508.5,5.61]
[1758386206922,0.2264,4508.6,4508.5,5.61]
[1758386207310,0.25412479,4508.6,4508.5,1.918]
[1758386207491,0.25412479,4508.6,4508.5,5.61]
[1758386208322,2.47210819,4508.6,4508.5,1.918]
[1758386208526,0.79101331,4508.6,4508.5,1.918]
[1758386208731,2.47210819,4508.6,4508.5,5.61]
[1758386209570,0.25412479,4508.6,4508.5,5.61]
[1758386209823,0.02772479,4508.6,4508.5,5.61]
[1758386210016,0.02772479,4508.6,4508.5,5.8573]
[1758386210831,2.21794397,4508.7,4508.5,5.8573]
[1758386211027,0.02772479,4508.6,4508.5,5.8573]
[1758386212328,0.02972479,4508.6,4508.5,5.8573]
[1758386216534,0.02972479,4508.6,4508.5,5.61]
[1758386220244,0.02972479,4508.6,4508.5,5.8573]
[1758386221260,0.10460345,4508.7,4508.5,5.61]
[1758386221420,0.02003555,4508.6,4508.5,5.61]
[1758386221824,0.02003555,4508.8,4508.5,5.61]
[1758386222060,2.46432214,4508.8,4508.5,5.61]
[1758386222966,0.24643555,4508.8,4508.5,5.61]
[1758386223334,0.02003555,4508.8,4508.5,5.61]
[1758386223554,2.23792066,4508.8,4508.5,5.61]
[1758386223748,2.46632066,4508.8,4508.5,5.61]
[1758386223951,0.24843555,4508.8,4508.5,5.61]
[1758386225675,0.24843555,4508.8,4508.5,5.8512]
[1758386226167,0.02003555,4508.8,4508.5,5.8512]
[1758386226869,0.66688971,4508.7,4508.5,5.8512]
[1758386227068,0.02003555,4508.6,4508.5,5.8512]
[1758386227565,0.02003555,4508.8,4508.5,5.8512]
[1758386227759,0.66688971,4508.6,4508.5,5.8512]
[1758386229566,0.66688971,4508.6,4508.5,5.61]
[1758386231170,0.66688971,4508.6,4508.5,5.609]
[1758386232796,0.66688971,4508.6,4508.5,5.61]
[1758386233341,0.68692526,4508.6,4508.5,5.61]
[1758386233874,0.68692526,4508.6,4508.5,5.8512]
[1758386234353,0.66688971,4508.6,4508.5,5.8512]
[1758386236179,0.002,4508.7,4508.6,0.792]
[1758386236485,0.002,4508.7,4508.6,3.26576323]
[1758386237282,0.002,4508.7,4508.6,3.35465894]
[1758386238779,0.002,4508.7,4508.6,8.25835631]
[1758386238968,0.002,4508.7,4508.6,8.23617648]
[1758386239167,0.002,4508.7,4508.6,4.99660573]
[1758386246820,0.002,4508.7,4508.6,8.68660573]
[1758386247118,0.002,4508.7,4508.6,13.5903031]
[1758386248516,0.002,4508.7,4508.6,8.68660573]
[1758386258902,0.002,4508.7,4508.6,11.68660573]
[1758386270448,0.002,4508.7,4508.6,11.68460573]
[1758386272828,0.002,4508.7,4508.6,7.99660573]
[1758386273128,0.002,4508.7,4508.6,11.68460573]
[1758386279295,0.002,4508.7,4508.6,7.76300573]
[1758386279479,0.2291,4508.7,4508.6,11.45100573]
[1758386279684,0.002,4508.7,4508.6,11.45100573]
[1758386282093,0.002,4508.7,4508.6,8.01080573]
[1758386282278,0.002,4508.7,4508.6,11.69880573]
[1758386286319,0.002,4508.7,4508.6,11.69980573]
[1758386286786,0.002,4508.7,4508.6,11.61091002]
[1758386288216,0.002,4508.7,4508.6,11.36311002]
[1758386289295,0.002,4508.7,4508.6,11.60771002]
[1758386291422,0.002,4508.7,4508.6,11.36311002]
[1758386292504,0.002,4508.7,4508.6,11.60771002]
[1758386293110,1e-08,4508.9,4508.8,6.00988502]
[1758386293418,1e-08,4508.9,4508.8,9.69688502]
[1758386296636,1e-08,4508.9,4508.8,11.61488502]
[1758386303329,1e-08,4508.9,4508.8,7.92788502]
[1758386303635,1e-08,4508.9,4508.8,11.61488502]
[1758386303835,1e-08,4508.9,4508.8,13.37901897]
[1758386305147,0.23730001,4508.9,4508.8,13.37901897]
[1758386307537,0.23730001,4508.9,4508.8,13.38001897]
[1758386309273,1e-08,4508.9,4508.8,13.38001897]
[1758386310771,0.23730001,4508.9,4508.8,13.38001897]
[1758386310973,1e-08,4508.9,4508.8,13.38001897]
[1758386311777,1e-08,4508.9,4508.8,18.28066572]
[1758386312862,1e-08,4508.9,4508.8,9.69301897]
[1758386313067,0.23730001,4508.9,4508.8,13.38001897]
[1758386321159,0.23730001,4508.9,4508.8,9.69301897]
[1758386321361,0.23730001,4508.9,4508.8,13.37901897]
[1758386323889,1e-08,4508.9,4508.8,13.37901897]
[1758386328391,1e-08,4508.9,4508.8,13.60521897]
[1758386330276,1e-08,4508.9,4508.8,13.37901897]
[1758386333724,1e-08,4508.9,4508.8,9.69301897]
[1758386333882,1e-08,4508.9,4508.8,13.37901897]
[1758386336925,1e-08,4508.9,4508.8,9.69301897]
[1758386337129,0.23990001,4508.9,4508.8,9.69301897]
[1758386337312,0.23990001,4508.9,4508.8,13.37901897]
[1758386341406,0.23990001,4508.9,4508.8,9.69301897]
[1758386341606,0.23990001,4508.9,4508.8,13.37801897]
[1758386343040,1e-08,4508.9,4508.8,9.69301897]
[1758386343218,0.22680001,4508.9,4508.8,10.82188502]
[1758386343413,0.22680001,4508.9,4508.8,11.61388502]
[1758386345642,1e-08,4508.9,4508.8,11.61388502]
[1758386345943,0.22680001,4508.9,4508.8,11.61388502]
[1758386346351,1e-08,4508.9,4508.8,11.61388502]
[1758386346708,0.22680001,4508.9,4508.8,11.61388502]
[1758386349242,0.22680001,4508.9,4508.8,7.92888502]
[1758386349449,1e-08,4508.9,4508.8,11.61388502]
[1758386350010,0.22680001,4508.9,4508.8,11.61388502]
[1758386351244,1e-08,4508.9,4508.8,11.61388502]
[1758386351451,0.22680001,4508.9,4508.8,11.61388502]
[1758386354063,1e-08,4508.9,4508.8,11.61388502]
[1758386354864,0.24670001,4508.9,4508.8,11.61388502]
[1758386356791,1e-08,4508.9,4508.8,11.61388502]
[1758386357587,0.24670001,4508.9,4508.8,11.61388502]
[1758386359256,1e-08,4508.9,4508.8,7.92888502]
[1758386359580,0.24670001,4508.9,4508.8,11.61388502]
[1758386363166,1e-08,4508.9,4508.8,11.61388502]
[1758386364583,1e-08,4508.9,4508.8,11.84068502]
[1758386364840,1e-08,4508.9,4508.8,12.76701364]
[1758386365089,1e-08,4508.9,4508.8,9.08201364]
[1758386365291,1e-08,4508.9,4508.8,12.54021364]
[1758386365788,1e-08,4508.9,4508.8,8.85521364]
[1758386366089,1e-08,4508.9,4508.8,12.54021364]
[1758386368444,1e-08,4508.9,4508.8,12.76701364]
[1758386368975,1e-08,4508.9,4508.8,12.54021364]
[1758386370382,1e-08,4508.9,4508.8,11.61388502]
[1758386372579,1e-08,4508.9,4508.8,7.92888502]
[1758386372879,0.24670001,4508.9,4508.8,11.61288502]
[1758386373746,1e-08,4508.9,4508.8,11.61288502]
[1758386377015,1e-08,4508.9,4508.8,7.92888502]
[1758386377171,1e-08,4508.9,4508.8,11.61288502]
[1758386379010,1e-08,4508.9,4508.8,11.83968502]
[1758386379817,1e-08,4508.9,4508.8,11.61288502]
[1758386379985,1e-08,4508.9,4508.8,11.83968502]
[1758386381705,1e-08,4508.9,4508.8,8.15568502]
[1758386381905,1e-08,4508.9,4508.8,11.83968502]
[1758386382086,1e-08,4508.9,4508.8,11.61288502]
[1758386385595,1e-08,4508.9,4508.8,7.92888502]
[1758386385801,1e-08,4508.9,4508.8,11.61288502]
[1758386386617,1e-08,4508.9,4508.8,11.86038502]
[1758386387801,1e-08,4508.9,4508.8,13.29328694]
[1758386388510,1e-08,4508.9,4508.8,9.60928694]
[1758386388717,1e-08,4508.9,4508.8,13.54198694]
[1758386394910,1e-08,4508.9,4508.8,19.60742769]
[1758386406548,1e-08,4508.9,4508.8,19.58632769]
[1758386416254,0.002,4509.4,4508.9,6.00983583]
[1758386416478,0.002,4509.4,4509.3,9.07507985]
[1758386416634,0.002,4509.4,4509.3,15.75707985]
[1758386416969,0.002,4509.4,4509.3,16.23367985]
[1758386417370,0.002,4509.4,4509.3,16.6832431]
[1758386418860,0.2378,4510.5,4510.4,3.00909826]
[1758386419061,0.2378,4510.5,4510.4,8.63126924]
[1758386419258,0.2378,4510.5,4510.4,8.60909826]
[1758386419642,0.2378,4510.5,4510.4,8.84689826]
[1758386422758,0.2478,4510.9,4510.8,3.00890165]
[1758386422954,0.01,4510.9,4510.8,6.71307066]
[1758386423160,0.01,4510.9,4510.8,6.69090165]
[1758386423478,0.2478,4510.9,4510.8,7.35732026]
[1758386428490,0.01,4511.9,4511.8,0.792]
[1758386428673,0.01,4511.9,4511.8,8.8673744]
[1758386428872,0.01,4511.9,4511.8,8.8452103]
[1758386429279,0.01,4511.9,4511.8,9.0830103]
[1758386429583,0.01,4511.9,4511.8,11.04115428]
[1758386429783,0.01,4511.9,4511.8,11.49432729]
[1758386429993,0.01,4511.9,4511.8,7.81332729]
[1758386430153,0.01,4511.9,4511.8,11.27452729]
[1758386430787,0.01,4511.9,4511.8,11.51332729]
[1758386431772,0.01,4512.9,4512.4,3.00811559]
[1758386431977,0.01,4512.9,4512.8,0.792]
[1758386432188,0.01,4512.9,4512.8,6.43215919]
[1758386432411,0.01,4512.9,4512.8,8.86471916]
[1758386432622,0.01,4512.9,4512.8,9.5307945]
[1758386433332,0.01,4512.9,4512.8,5.5909945]
[1758386433478,0.2478,4512.9,4512.8,9.2909945]
[1758386433820,0.2478,4512.9,4512.8,10.47177193]
[1758386439174,0.01,4512.9,4512.8,10.47177193]
[1758386440495,0.01,4512.9,4512.8,10.71057193]
[1758386441497,0.01,4512.9,4512.8,6.77177193]
[1758386441807,0.2478,4512.9,4512.8,9.2889945]
[1758386443587,0.2478,4512.9,4512.8,9.2879945]
[1758386443786,0.2478,4512.9,4512.8,8.62191916]
[1758386447120,0.2478,4512.9,4512.8,4.92491916]
[1758386447301,0.2478,4512.9,4512.8,8.62191916]
[1758386447889,0.2478,4512.9,4512.8,2.709]
[1758386448292,0.45850744,4512.9,4512.8,2.709]
[1758386448601,0.45850744,4512.9,4512.8,8.62091916]
[1758386449393,0.2478,4512.9,4512.8,8.62091916]
[1758386451222,0.2498,4512.9,4512.8,4.92491916]
[1758386451796,0.2498,4512.9,4512.8,8.61991916]
[1758386455994,0.2498,4512.9,4512.8,4.92491916]
[1758386456205,0.2498,4512.9,4512.8,8.61891916]
[1758386456406,0.2498,4512.9,4512.8,4.92491916]
[1758386456622,0.2498,4512.9,4512.8,8.61891916]
[1758386458134,0.012,4512.9,4512.8,8.61891916]
[1758386458302,0.2536,4512.9,4512.8,8.61891916]
[1758386459312,0.2536,4512.9,4512.8,4.92491916]
[1758386459605,0.2536,4512.9,4512.8,8.61791916]
[1758386460436,0.012,4512.9,4512.8,8.61791916]
[1758386460938,0.2536,4512.9,4512.8,8.61791916]
[1758386461744,0.012,4512.9,4512.8,8.61791916]
[1758386461946,0.012,4512.9,4512.8,8.86281916]
[1758386462137,0.012,4512.9,4512.8,9.52893148]
[1758386467158,0.012,4512.9,4512.8,8.86281916]
[1758386479396,0.012,4512.9,4512.8,8.61791916]
[1758386480056,0.012,4512.9,4512.8,4.92491916]
[1758386480256,0.012,4512.9,4512.8,8.61391916]
[1758386480594,0.012,4512.9,4512.8,8.61291916]
[1758386480889,0.012,4512.9,4512.8,4.92491916]
[1758386481296,0.012,4512.9,4512.8,8.61291916]
[1758386481593,0.012,4512.9,4512.8,4.92491916]
[1758386481787,0.012,4512.9,4512.8,8.61291916]
[1758386481998,0.012,4512.9,4512.8,8.84561916]
[1758386485672,0.012,4512.9,4512.8,9.9517822]
[1758386488459,0.012,4512.9,4512.8,10.61780726]
[1758386490474,0.92524945,4513.2,4512.9,2.21587006]
[1758386490679,1.01406974,4513.9,4513.4,3.00762458]
[1758386490680,1e-08,4513.5,4513.4,3.00762458]
[1758386490883,1.01406974,4513.9,4513.5,3.00757549]
[1758386491179,1.01406974,4513.9,4513.5,8.02302919]
[1758386491378,1.11667015,4514.8,4514.0,2.21530199]
[1758386491605,1.11667015,4514.8,4513.6,3.0]
[1758386491606,1.11667015,4514.8,4514.7,3.00698659]
[1758386491809,1.11667015,4514.8,4514.7,9.93168659]
[1758386491986,1.11667015,4514.8,4514.7,6.23968659]
[1758386492318,1.11667015,4514.8,4514.7,6.69898659]
[1758386492616,1.11667015,4514.8,4514.7,8.44525881]
[1758386492985,1.11667015,4514.8,4514.7,4.75325881]
[1758386493185,1.11667015,4514.8,4514.7,8.44725881]
[1758386493591,1.11667015,4514.8,4514.7,6.70098659]
[1758386493816,1.36487015,4514.8,4514.7,6.70098659]
[1758386494022,1.36487015,4514.8,4514.7,3.00698659]
[1758386494709,1.36487015,4514.8,4514.7,4.486]
[1758386494916,1.36487015,4514.8,4514.7,3.00698659]
[1758386495121,1.36487015,4514.8,4514.7,6.70098659]
[1758386495601,1.36487015,4514.8,4514.7,7.15475503]
[1758386497618,1.36487015,4514.8,4514.7,7.15375503]
[1758386499036,1.11667015,4514.8,4514.7,7.15375503]
[1758386499198,1.11667015,4514.8,4514.7,7.38645503]
[1758386499849,1.11667015,4514.8,4514.7,7.15375503]
[1758386502634,1.11667015,4514.8,4514.7,7.38645503]
[1758386502866,1.11667015,4514.8,4514.7,8.94550767]
[1758386509332,1.11667015,4514.8,4514.7,8.71280767]
[1758386509652,1.34537015,4514.8,4514.7,6.35875503]
[1758386509823,1.34537015,4514.8,4514.7,6.35975503]
[1758386510026,1.34537015,4514.8,4514.7,7.15175503]
[1758386511023,1.11867015,4514.8,4514.7,7.15175503]
[1758386511353,1.11867015,4514.8,4514.7,13.44002079]
[1758386511542,1.11867015,4514.8,4514.7,15.60453001]
[1758386512357,1.11867015,4514.8,4514.7,9.55466425]
[1758386516170,1.11867015,4514.8,4514.7,9.31626425]
[1758386516746,1.11867015,4514.8,4514.7,9.55466425]
[1758386516942,1.11867015,4514.8,4514.7,5.62526425]
[1758386517144,1.34737015,4514.8,4514.7,9.31426425]
[1758386517557,1.34737015,4514.8,4514.7,7.15075503]
[1758386517760,1.11867015,4514.8,4514.7,7.15075503]
[1758386518334,1.11867015,4514.8,4514.7,7.14975503]
[1758386519241,1.34737015,4514.8,4514.7,3.46075503]
[1758386519441,1.34737015,4514.8,4514.7,7.14975503]
[1758386519666,1.34737015,4514.8,4514.7,3.46075503]
[1758386519868,1.34737015,4514.8,4514.7,7.14975503]
[1758386520238,1.34737015,4514.8,4514.7,3.46075503]
[1758386520438,1.34737015,4514.8,4514.7,7.14975503]
[1758386522998,1.34737015,4514.8,4514.7,7.14875503]
[1758386523959,1.11867015,4514.8,4514.7,7.14875503]
[1758386524298,1.11867015,4514.8,4514.7,11.43422425]
[1758386524995,1.11867015,4514.8,4514.7,14.43422425]
[1758386525798,1.11867015,4514.8,4514.7,14.20412425]
[1758386526110,1.11867015,4514.8,4514.7,12.06475503]
[1758386526294,1.35387015,4514.8,4514.7,12.06475503]
[1758386527108,1.35387015,4514.8,4514.7,9.06475503]
[1758386527671,1.11867015,4514.8,4514.7,9.06475503]
[1758386528018,1.11867015,4514.8,4514.7,9.29485503]
[1758386528302,1.11867015,4514.8,4514.7,14.49413147]
[1758386528594,1.11867015,4514.8,4514.7,14.26403147]
[1758386528977,1.35387015,4514.8,4514.7,14.26403147]
[1758386529175,1.35387015,4514.8,4514.7,8.37575503]
[1758386529387,1.35387015,4514.8,4514.7,12.06575503]
[1758386529791,1.35387015,4514.8,4514.7,8.37575503]
[1758386529991,1.35387015,4514.8,4514.7,12.06675503]
[1758386530504,1.35387015,4514.8,4514.7,8.37575503]
[1758386530799,1.35387015,4514.8,4514.7,12.06675503]
[1758386534384,1.35387015,4514.8,4514.7,9.06675503]
[1758386534990,1.35387015,4514.8,4514.7,9.06575503]
[1758386542395,1.35387015,4514.8,4514.7,2.707]
[1758386542595,1.35387015,4514.8,4514.7,8.61098659]
[1758386542808,1.3739057,4514.8,4514.7,6.396]
[1758386543406,1.3739057,4514.8,4514.7,2.707]
[1758386543611,1.3739057,4514.8,4514.7,6.396]
[1758386543915,1.3739057,4514.8,4514.7,2.707]
[1758386544120,1.3739057,4514.8,4514.7,6.396]
[1758386544317,1.3739057,4514.8,4514.7,8.61098659]
[1758386544527,1.3739057,4514.8,4514.7,6.396]
[1758386545318,1.3739057,4514.8,4514.7,8.61098659]
[1758386545688,1.3739057,4514.8,4514.7,3.00698659]
[1758386545888,1.3739057,4514.8,4514.7,6.69598659]
[1758386546796,1.1387057,4514.8,4514.7,6.69598659]
[1758386546997,1.3700057,4514.8,4514.7,6.69598659]
[1758386547702,1.34997015,4514.8,4514.7,6.69598659]
[1758386548514,1.3700057,4514.8,4514.7,4.481]
[1758386548711,1.3700057,4514.8,4514.7,6.69598659]
[1758386550394,1.3700057,4514.8,4514.7,4.481]
[1758386550794,1.73471831,4514.8,4514.7,4.481]
[1758386551021,1.73471831,4514.8,4514.7,4.48]
[1758386553918,1.73471831,4514.8,4514.7,0.792]
[1758386554907,3.94965584,4514.8,4514.7,0.792]
[1758386555213,1.73471831,4514.8,4514.7,0.792]
[1758386556117,1.73471831,4514.8,4514.6,0.001]
[1758386556440,0.62266945,4514.7,4514.6,0.001]
[1758386556747,2.83765604,4514.7,4514.6,0.001]
[1758386556950,0.85396945,4514.7,4514.6,0.001]
[1758386557935,0.874005,4514.7,4514.6,0.001]
[1758386559860,3.08899159,4514.7,4514.6,0.001]
[1758386560375,0.874005,4514.7,4514.6,0.001]
[1758386560868,3.08899159,4514.7,4514.6,0.001]
[1758386561074,0.874005,4514.7,4514.6,0.001]
[1758386564976,0.02003555,4514.7,4514.6,0.001]
[1758386565280,1.1387057,4514.8,4514.7,0.792]
[1758386565581,1.11867015,4514.8,4514.7,1.0341]
[1758386570780,1.11867015,4514.8,4514.7,0.792]
[1758386571779,1.1387057,4514.8,4514.6,0.001]
[1758386572104,1.9559834,4514.8,4514.7,0.792]
[1758386572890,1.9559834,4514.8,4514.6,3.686]
[1758386572891,4.17092093,4514.8,4514.6,0.001]
[1758386573091,1.9559834,4514.8,4514.6,0.001]
[1758386573408,1.7248834,4514.8,4514.6,0.001]
[1758386574067,0.2311,4514.7,4514.6,0.001]
[1758386575397,0.81728564,4514.7,4514.6,0.001]
[1758386582083,0.83732119,4514.7,4514.6,0.001]
[1758386582994,0.60622119,4514.7,4514.6,0.001]
[1758386583381,2.82120778,4514.7,4514.6,0.001]
[1758386584011,3.1787999,4514.7,4514.6,0.001]
[1758386584217,3.17879567,4514.7,4514.6,0.001]
[1758386584415,8.27697726,4514.7,4514.6,0.001]
[1758386584618,11.25694171,4514.7,4514.6,0.001]
[1758386586017,6.36658746,4514.7,4514.6,0.001]
[1758386590230,7.03262583,4514.7,4514.6,0.001]
[1758386596050,14.19262583,4514.7,4514.6,0.001]
[1758386596845,2.21518286,4514.3,4514.2,0.001]
[1758386597046,16.58060618,4514.3,4514.2,0.001]
[1758386597352,16.79557063,4514.3,4514.2,0.001]
[1758386597655,16.88439783,4514.3,4514.2,0.001]
[1758386598296,24.04439783,4514.3,4514.2,0.001]
[1758386602876,24.04368811,4514.3,4514.2,0.001]
[1758386608834,16.88368811,4514.3,4514.2,0.001]
[1758386609006,16.88968811,4514.3,4514.2,0.001]
[1758386610851,8.30796838,4514.3,4514.2,0.001]
[1758386611136,16.88932263,4514.3,4514.2,0.001]
[1758386614738,16.88942941,4514.3,4514.2,0.001]
[1758386616875,16.88947682,4514.3,4514.2,0.001]
[1758386617762,18.05625848,4514.3,4514.2,0.001]
[1758386619072,14.36525848,4514.3,4514.2,0.001]
[1758386619254,17.82025848,4514.3,4514.2,0.001]
[1758386620075,24.98025848,4514.3,4514.2,0.001]
[1758386620239,25.21525848,4514.3,4514.2,0.001]
[1758386625470,21.29025848,4514.3,4514.2,0.001]
[1758386625670,24.97825848,4514.3,4514.2,0.001]
[1758386626303,24.97825848,4514.3,4514.2,0.2312]
[1758386626609,15.23312257,4514.3,4514.2,0.001]
[1758386626932,18.92112257,4514.3,4514.2,0.2312]
[1758386630690,18.92153399,4514.3,4514.2,0.2312]
[1758386634155,18.92153399,4514.3,4514.2,0.001]
[1758386634361,19.16443399,4514.3,4514.2,0.001]
[1758386634651,19.04014398,4514.3,4514.2,0.001]
[1758386634942,19.1648045,4514.3,4514.2,0.001]
[1758386636958,19.40446609,4514.3,4514.2,0.001]
[1758386640574,21.73946609,4514.3,4514.2,0.001]
[1758386640783,21.4998045,4514.3,4514.2,0.001]
[1758386644479,19.1648045,4514.3,4514.2,0.001]
[1758386645984,2.21542824,4513.8,4513.7,0.001]
[1758386646268,15.53351867,4513.8,4513.7,0.001]
[1758386646498,15.51348312,4513.8,4513.7,0.241]
[1758386646673,15.75348312,4513.8,4513.7,0.241]
[1758386647210,22.91350901,4513.8,4513.7,0.241]
[1758386654032,25.24850901,4513.8,4513.7,0.241]
[1758386654235,22.91350901,4513.8,4513.7,0.241]
[1758386654934,22.91250901,4513.8,4513.7,0.001]
[1758386655237,16.8553731,4513.8,4513.7,0.2311]
[1758386656337,16.8053731,4513.8,4513.7,0.2311]
[1758386657651,12.89783028,4513.8,4513.7,0.2311]
[1758386657858,16.58383028,4513.8,4513.7,0.2311]
[1758386658859,18.50083028,4513.8,4513.7,0.2311]
[1758386661177,18.49983028,4513.8,4513.7,0.2311]
[1758386663358,14.81483028,4513.8,4513.7,0.2311]
[1758386663523,18.49983028,4513.8,4513.7,0.2311]
[1758386667350,18.49983028,4513.8,4513.7,0.001]
[1758386667666,19.62461346,4513.8,4513.7,0.001]
[1758386668463,19.85781346,4513.8,4513.7,0.001]
[1758386668960,19.85784041,4513.8,4513.7,0.001]
[1758386670125,19.85984041,4513.8,4513.7,0.001]
[1758386672181,16.17484041,4513.8,4513.7,0.001]
[1758386672360,19.85984041,4513.8,4513.7,0.001]
[1758386672890,19.85984548,4513.8,4513.7,0.001]
[1758386676891,19.52741142,4513.8,4513.7,0.001]
[1758386677098,19.85986161,4513.8,4513.7,0.001]
[1758386677297,19.85986174,4513.8,4513.7,0.001]
[1758386677990,24.75487196,4513.8,4513.7,0.001]
[1758386680023,24.99453355,4513.8,4513.7,0.001]
[1758386680998,24.99453571,4513.8,4513.7,0.001]
[1758386684475,24.75487412,4513.8,4513.7,0.001]
[1758386687127,24.52167412,4513.8,4513.7,0.001]
[1758386687785,24.75797412,4513.8,4513.7,0.001]
[1758386688515,21.07297412,4513.8,4513.7,0.001]
[1758386688720,24.75797412,4513.8,4513.7,0.001]
[1758386689018,24.75787492,4513.8,4513.7,0.001]
[1758386689618,25.10526554,4513.8,4513.7,0.001]
[1758386691198,30.00027576,4513.8,4513.7,0.001]
[1758386691516,25.10526554,4513.8,4513.7,0.001]
[1758386691680,30.00027576,4513.8,4513.7,0.001]
[1758386692122,30.0000859,4513.8,4513.7,0.001]
[1758386694424,32.3350859,4513.8,4513.7,0.001]
[1758386694624,30.0000859,4513.8,4513.7,0.001]
[1758386695025,29.65269528,4513.8,4513.7,0.001]
[1758386695432,24.75768506,4513.8,4513.7,0.001]
[1758386697009,24.75769002,4513.8,4513.7,0.001]
[1758386697211,24.52139002,4513.8,4513.7,0.001]
[1758386699741,24.86878776,4513.8,4513.7,0.001]
[1758386699900,25.10508776,4513.8,4513.7,0.001]
[1758386700430,30.00009798,4513.8,4513.7,0.001]
[1758386701032,25.10508776,4513.8,4513.7,0.001]
[1758386701438,25.10508776,4513.8,4513.2,0.2265]
[1758386701439,4.89501022,4513.3,4513.2,0.2265]
[1758386701637,18.28685227,4513.3,4513.2,0.2265]
[1758386701942,21.28685227,4513.3,4513.2,0.2265]
[1758386702147,21.63425629,4513.3,4513.2,0.2265]
[1758386702659,21.86075629,4513.3,4513.2,0.2265]
[1758386702832,22.38227458,4513.3,4513.2,0.2265]
[1758386704834,22.38233817,4513.3,4513.2,0.2265]
[1758386705131,22.03493415,4513.3,4513.2,0.2265]
[1758386709751,22.38233734,4513.3,4513.2,0.2265]
[1758386713492,22.38233734,4513.3,4513.2,0.001]
[1758386714754,13.27980883,4513.3,4513.2,0.2275]
[1758386714950,16.61740564,4513.3,4513.2,0.2275]
[1758386715184,9.93240564,4513.3,4513.2,0.2275]
[1758386715389,13.61740564,4513.3,4513.2,0.2275]
[1758386715580,16.61740564,4513.3,4513.2,0.2275]
[1758386722916,12.93240564,4513.3,4513.2,0.2275]
[1758386723115,16.61740564,4513.3,4513.2,0.2275]
[1758386724327,16.61733236,4513.3,4513.2,0.2275]
[1758386725286,16.61732892,4513.3,4513.2,0.2275]
[1758386726528,16.61732892,4513.3,4513.2,0.001]
[1758386727488,16.61732892,4513.3,4513.2,0.2275]
[1758386728525,12.93232892,4513.3,4513.2,0.2275]
[1758386728734,16.61732892,4513.3,4513.2,0.2275]
[1758386732345,16.61732553,4513.3,4513.2,0.2275]
[1758386733344,16.40981197,4513.3,4513.2,0.2275]
[1758386734332,16.6173482,4513.3,4513.2,0.2275]
[1758386735307,12.9323482,4513.3,4513.2,0.2275]
[1758386735523,14.1941383,4513.3,4513.2,0.2275]
[1758386736047,16.40981197,4513.3,4513.2,0.2275]
[1758386737206,12.72481197,4513.3,4513.2,0.2275]
[1758386737410,16.40981197,4513.3,4513.2,0.2275]
[1758386739163,16.40971723,4513.3,4513.2,0.2275]
[1758386742560,16.40871723,4513.3,4513.2,0.2275]
[1758386743964,16.40881735,4513.3,4513.2,0.2275]
[1758386745161,14.19314368,4513.3,4513.2,0.2275]
[1758386746132,16.40881735,4513.3,4513.2,0.2275]
[1758386746334,14.19314368,4513.3,4513.2,0.2275]
[1758386747074,13.96664368,4513.3,4513.2,0.2275]
[1758386747813,10.28264368,4513.3,4513.2,0.001]
[1758386747975,13.96664368,4513.3,4513.2,0.238]
[1758386748699,16.18231735,4513.3,4513.2,0.238]
[1758386749611,13.96664368,4513.3,4513.2,0.238]
[1758386750505,6.80864368,4513.3,4513.2,0.238]
[1758386750714,3.12464368,4513.3,4513.2,0.238]
[1758386751115,6.80864368,4513.3,4513.2,0.238]
[1758386752115,3.12464368,4513.3,4513.2,0.238]
[1758386752323,3.12467274,4513.3,4513.2,0.238]
[1758386752540,6.80867274,4513.3,4513.2,0.238]
[1758386752820,6.684,4513.3,4513.2,0.238]
[1758386753025,0.66816704,4513.6,4513.2,0.238]
[1758386753228,3.684,4513.5,4513.2,2.45367671]
[1758386753378,3.684,4513.5,4513.3,0.237]
[1758386754188,0.002,4513.6,4513.4,0.237]
[1758386754494,3.684,4513.5,4513.4,0.237]
[1758386755916,3.684,4513.5,4513.2,0.001]
[1758386756121,0.02003555,4513.4,4513.2,0.001]
[1758386756618,3.684,4513.4,4513.2,0.001]
[1758386758484,3.684,4513.4,4513.2,0.238]
[1758386758704,3.684,4513.4,4513.2,2.21671451]
[1758386758904,3.684,4513.4,4513.3,0.237]
[1758386759204,3.684,4513.4,4513.2,0.793]
[1758386759536,2.23570922,4513.3,4513.2,0.001]
[1758386759740,2.47210922,4513.3,4513.2,0.001]
[1758386765006,2.47160922,4513.3,4513.2,0.001]
[1758386765905,5.59623044,4513.3,4513.2,0.001]
[1758386766144,5.57619489,4513.3,4513.2,0.001]
[1758386766350,13.97080685,4513.3,4513.2,0.001]
[1758386766666,14.1785178,4513.3,4513.2,0.001]
[1758386773455,14.17829718,4513.3,4513.2,0.001]
[1758386777500,14.17826356,4513.3,4513.2,0.001]
[1758386780990,16.09526356,4513.3,4513.2,0.001]
[1758386781516,16.0951357,4513.3,4513.2,0.001]